bitfinex/quotes_BTCUSD_20251207
["timestamp","ask_amount","ask_price","bid_price","bid_amount"]
[1765125806564,0.00200001,89522.0,89520.0,0.22341338]
[1765125806979,0.00361288,89522.0,89519.0,0.01117081]
[1765125807196,0.01117056,89521.0,89518.0,0.01117093]
[1765125807419,0.01117068,89520.0,89514.0,0.22342639]
[1765125807554,0.01278343,89521.0,89517.0,0.01117106]
[1765125807758,0.00161287,89521.0,89518.0,0.01117093]
[1765125807980,0.00161287,89521.0,89518.0,0.23458875]
[1765125808303,0.00161287,89521.0,89520.0,0.22341376]
[1765125808472,0.00200001,89522.0,89521.0,0.02223567]
[1765125808659,0.00200001,89522.0,89521.0,0.06197567]
[1765125808974,0.00200001,89522.0,89521.0,0.06336381]
[1765125809382,1e-08,89522.0,89521.0,0.06336381]
[1765125809586,1e-08,89522.0,89521.0,0.06820558]
[1765125809797,0.00100001,89522.0,89521.0,0.06820558]
[1765125809981,0.00100001,89522.0,89521.0,0.06197567]
[1765125810178,0.00200001,89522.0,89521.0,0.06932292]
[1765125810582,0.00300001,89522.0,89521.0,0.06932292]
[1765125812525,0.00300001,89522.0,89521.0,0.06197567]
[1765125813283,0.00300001,89522.0,89521.0,0.06335037]
[1765125814219,0.00300001,89522.0,89521.0,0.06932292]
[1765125814532,0.00300001,89522.0,89521.0,0.06197567]
[1765125815738,0.00300001,89522.0,89521.0,0.03974]
[1765125817441,0.00300001,89522.0,89521.0,0.03997512]
[1765125817643,0.00300001,89522.0,89521.0,0.05204512]
[1765125817842,0.00300001,89522.0,89521.0,0.05181]
[1765125818814,0.00300001,89522.0,89521.0,0.07404567]
[1765125819962,0.00300001,89522.0,89521.0,0.08137812]
[1765125820496,0.00300001,89522.0,89521.0,0.07404567]
[1765125820740,0.00300001,89522.0,89521.0,0.08137812]
[1765125821780,0.00200001,89522.0,89521.0,0.08137812]
[1765125821953,1e-08,89522.0,89521.0,0.08137812]
[1765125822155,1e-08,89522.0,89521.0,0.08237812]
[1765125822333,1e-08,89522.0,89521.0,0.08537812]
[1765125822518,1e-08,89522.0,89521.0,0.08137812]
[1765125822854,1e-08,89522.0,89521.0,0.08237812]
[1765125823055,1e-08,89522.0,89521.0,0.08637812]
[1765125830190,1e-08,89522.0,89521.0,0.06414245]
[1765125830347,1e-08,89522.0,89521.0,0.08637812]
[1765125834102,1e-08,89522.0,89521.0,0.40937812]
[1765125834305,1e-08,89522.0,89521.0,0.40204567]
[1765125837538,1e-08,89522.0,89521.0,0.54934567]
[1765125843583,1e-08,89522.0,89521.0,0.40204567]
[1765125844823,1e-08,89522.0,89521.0,1.17133267]
[1765125845165,1e-08,89522.0,89521.0,0.74825174]
[1765125845686,1e-08,89522.0,89521.0,0.74725174]
[1765125845931,1e-08,89522.0,89521.0,0.42989274]
[1765125846139,1e-08,89522.0,89521.0,0.42072567]
[1765125846308,1e-08,89522.0,89521.0,0.41672567]
[1765125846502,1e-08,89522.0,89521.0,0.41872567]
[1765125846893,1e-08,89522.0,89521.0,0.41672567]
[1765125847115,1e-08,89522.0,89521.0,0.41772567]
[1765125847312,1e-08,89522.0,89521.0,0.09272567]
[1765125847568,1e-08,89522.0,89521.0,0.07049]
[1765125847771,1e-08,89522.0,89521.0,0.07149]
[1765125848148,1e-08,89522.0,89521.0,0.09372567]
[1765125848555,1e-08,89522.0,89521.0,0.07604567]
[1765125848963,1e-08,89522.0,89521.0,0.07504567]
[1765125849317,1e-08,89522.0,89521.0,0.07404567]
[1765125849721,0.00300001,89522.0,89521.0,0.07404567]
[1765125851362,0.00300001,89522.0,89521.0,0.05181]
[1765125851514,0.00300001,89522.0,89521.0,0.07537577]
[1765125852388,1e-08,89522.0,89521.0,0.07637577]
[1765125852522,1e-08,89522.0,89521.0,0.07504567]
[1765125852721,0.00100001,89522.0,89521.0,0.07504567]
[1765125852951,0.00100001,89522.0,89521.0,0.07404567]
[1765125853147,0.00100001,89522.0,89521.0,0.07504567]
[1765125853371,0.00100001,89522.0,89521.0,0.07637593]
[1765125853910,0.00100001,89522.0,89521.0,0.07537593]
[1765125854041,1e-08,89522.0,89521.0,0.07537593]
[1765125854236,1e-08,89522.0,89521.0,0.07737593]
[1765125855207,1e-08,89522.0,89521.0,0.07937593]
[1765125861557,1e-08,89522.0,89521.0,0.05381]
[1765125861836,1e-08,89522.0,89521.0,0.03027]
[1765125862013,1e-08,89522.0,89521.0,0.07359567]
[1765125862247,1e-08,89522.0,89521.0,0.07259567]
[1765125862455,0.00100001,89522.0,89521.0,0.07259567]
[1765125862736,1e-08,89522.0,89521.0,0.07259567]
[1765125863059,0.00300001,89522.0,89521.0,0.07259567]
[1765125863923,0.00300001,89522.0,89521.0,0.07392152]
[1765125864510,0.00300001,89522.0,89521.0,0.07991391]
[1765125865159,0.00300001,89522.0,89521.0,0.10229391]
[1765125865295,0.00300001,89522.0,89521.0,0.07991391]
[1765125866120,0.00300001,89522.0,89521.0,0.05036]
[1765125866318,0.00300001,89522.0,89521.0,0.07991391]
[1765125866515,0.00300001,89522.0,89521.0,0.07259567]
[1765125866741,0.00300001,89522.0,89521.0,0.02727]
[1765125867056,0.00300001,89522.0,89521.0,0.01207]
[1765125867260,0.00300001,89522.0,89520.0,0.22341376]
[1765125868335,1e-08,89522.0,89520.0,0.22341376]
[1765125868718,0.00300001,89522.0,89520.0,0.22341376]
[1765125878203,0.00461288,89522.0,89514.0,0.01117143]
[1765125878404,0.01117081,89519.0,89516.0,0.01117118]
[1765125878614,0.01117093,89518.0,89515.0,0.01117131]
[1765125878818,0.00161287,89519.0,89516.0,0.01117118]
[1765125879625,0.00161287,89519.0,89516.0,0.23459286]
[1765125880945,0.00361287,89519.0,89516.0,0.23459286]
[1765125881147,0.00361287,89519.0,89516.0,0.01117118]
[1765125881352,0.00361287,89519.0,89517.0,0.22342124]
[1765125881684,0.005,89518.0,89516.0,0.01117118]
[1765125881889,0.005,89518.0,89516.0,0.23459343]
[1765125882082,0.00361287,89519.0,89516.0,0.01117118]
[1765125882292,0.00361287,89519.0,89510.0,0.01198]
[1765125882293,0.01117118,89516.0,89511.0,0.01117181]
[1765125882566,0.01117106,89517.0,89513.0,0.01117156]
[1765125884221,0.01317106,89517.0,89513.0,0.01117156]
[1765125884645,0.01817106,89517.0,89513.0,0.01117156]
[1765125885673,0.007,89517.0,89514.0,0.01117143]
[1765125885874,0.007,89517.0,89515.0,0.22342423]
[1765125886675,0.005,89517.0,89515.0,0.22342423]
[1765125886858,0.00161287,89519.0,89516.0,0.01117118]
[1765125887054,0.005,89517.0,89516.0,0.01117118]
[1765125887665,0.007,89517.0,89516.0,0.01117118]
[1765125887870,0.002,89517.0,89516.0,0.01117118]
[1765125888070,0.002,89517.0,89516.0,0.23459282]
[1765125888273,0.008,89517.0,89516.0,0.23459282]
[1765125888883,0.008,89517.0,89516.0,0.01117118]
[1765125889595,0.006,89517.0,89516.0,0.01117118]
[1765125889979,0.008,89517.0,89516.0,0.01117118]
[1765125892254,0.008,89517.0,89516.0,0.23459492]
[1765125894940,0.008,89517.0,89514.0,0.23459799]
[1765125895744,0.01717106,89517.0,89513.0,0.01117156]
[1765125896168,0.02598712,89517.0,89513.0,0.01117156]
[1765125896363,0.01481606,89517.0,89514.0,0.01117143]
[1765125896556,0.00681606,89517.0,89514.0,0.23459772]
[1765125896842,0.005,89517.0,89516.0,0.22342374]
[1765125897046,0.007,89517.0,89515.0,0.01117131]
[1765125897744,0.002,89517.0,89515.0,0.01117131]
[1765125897947,0.008,89517.0,89515.0,0.01117131]
[1765125898174,0.008,89517.0,89515.0,0.23459551]
[1765125899006,0.006,89517.0,89515.0,0.23459551]
[1765125899171,0.00681606,89518.0,89515.0,0.23459551]
[1765125899518,0.00842893,89519.0,89516.0,0.01117118]
[1765125899691,0.007,89517.0,89516.0,0.01117118]
[1765125899851,0.002,89517.0,89516.0,0.01117118]
[1765125900255,0.005,89518.0,89516.0,0.01117118]
[1765125900462,0.00842893,89519.0,89516.0,0.01117118]
[1765125900668,0.00842893,89519.0,89516.0,0.23459285]
[1765125901026,0.006,89517.0,89516.0,0.23459285]
[1765125901163,0.00842893,89519.0,89516.0,0.23459285]
[1765125901362,0.00842893,89519.0,89517.0,0.22341948]
[1765125901563,0.002,89518.0,89517.0,0.22341948]
[1765125902088,0.002,89518.0,89504.0,0.00024181]
[1765125902089,0.01117193,89510.0,89504.0,0.00024181]
[1765125902289,0.2234512,89505.0,89504.0,0.00024181]
[1765125903715,0.2274512,89505.0,89504.0,0.00024181]
[1765125904949,0.005,89505.0,89504.0,0.00024181]
[1765125905242,0.005,89505.0,89504.0,0.22369551]
[1765125905444,0.34068,89512.0,89506.0,0.01117243]
[1765125905648,0.323,89512.0,89507.0,0.01117231]
[1765125905826,0.00161287,89519.0,89514.0,0.01117143]
[1765125905992,0.01768,89517.0,89514.0,0.01117143]
[1765125906203,0.01768,89517.0,89513.0,0.01117156]
[1765125906204,0.01117118,89516.0,89513.0,0.01117156]
[1765125906416,0.22345079,89506.0,89504.0,0.00024181]
[1765125908574,0.22445079,89506.0,89504.0,0.00024181]
[1765125909150,0.001,89506.0,89504.0,0.00024181]
[1765125909557,0.001,89506.0,89504.0,0.00324181]
[1765125912009,0.001,89506.0,89504.0,0.22669514]
[1765125912417,0.001,89506.0,89504.0,0.00324181]
[1765125913407,0.00781606,89506.0,89504.0,0.00324181]
[1765125914080,0.001,89506.0,89504.0,0.00324181]
[1765125914692,0.00781606,89506.0,89504.0,0.00324181]
[1765125916945,0.00781606,89506.0,89504.0,0.2266935]
[1765125917751,0.00781606,89506.0,89504.0,0.00324181]
[1765125917870,0.00781606,89506.0,89504.0,0.22669491]
[1765125918238,0.00781606,89506.0,89504.0,0.00324181]
[1765125921041,0.2234512,89505.0,89504.0,0.00324181]
[1765125922183,0.001,89506.0,89504.0,0.00324181]
[1765125922397,0.001,89506.0,89504.0,0.22369339]
[1765125922629,0.01117143,89514.0,89504.0,0.22369339]
[1765125922630,0.01768,89514.0,89511.0,0.01117181]
[1765125922833,0.00161287,89519.0,89516.0,0.01117118]
[1765125923034,0.01929287,89519.0,89516.0,0.01117118]
[1765125923254,0.00161287,89519.0,89518.0,0.22341875]
[1765125923806,0.00161287,89519.0,89518.0,0.23961875]
[1765125924658,0.00361287,89519.0,89518.0,0.23961875]
[1765125925459,0.00361287,89519.0,89518.0,0.26450875]
[1765125925844,0.00161287,89519.0,89518.0,0.22341875]
[1765125926167,0.00954619,89528.0,89523.0,0.01117031]
[1765125926696,0.23457166,89525.0,89520.0,0.01117068]
[1765125926942,0.01117006,89525.0,89521.0,0.01117056]
[1765125927142,0.01116993,89526.0,89522.0,0.01117043]
[1765125927552,0.01116981,89527.0,89523.0,0.01117031]
[1765125927774,0.01054619,89528.0,89525.0,0.01117006]
[1765125928137,0.01116981,89527.0,89523.0,0.01217031]
[1765125928672,0.01116981,89527.0,89524.0,0.01117018]
[1765125928877,0.01054619,89528.0,89525.0,0.01117006]
[1765125929075,0.00954619,89528.0,89525.0,0.01117006]
[1765125929907,0.00954619,89528.0,89524.0,0.007]
[1765125929908,0.01216981,89527.0,89524.0,0.007]
[1765125930256,0.01216981,89527.0,89525.0,0.001]
[1765125930900,0.22339878,89526.0,89524.0,0.007]
[1765125931048,0.01116993,89526.0,89522.0,0.01117043]
[1765125931250,0.01116993,89526.0,89525.0,0.007]
[1765125931561,0.01117006,89525.0,89522.0,0.01117043]
[1765125931763,0.01117018,89524.0,89521.0,0.01117056]
[1765125932347,0.01117006,89525.0,89522.0,0.01117043]
[1765125933074,0.22340627,89523.0,89516.0,0.23459281]
[1765125933309,0.01117056,89521.0,89518.0,0.01117093]
[1765125933490,0.00681606,89520.0,89518.0,0.01117093]
[1765125933690,0.00681606,89520.0,89518.0,0.23458817]
[1765125934517,0.00681606,89521.0,89518.0,0.23458817]
[1765125934729,0.00681606,89521.0,89518.0,0.01117093]
[1765125935279,0.002,89520.0,89518.0,0.01117093]
[1765125935482,0.01117106,89517.0,89513.0,0.23460279]
[1765125935682,0.01117106,89517.0,89513.0,0.23472067]
[1765125935882,0.01117106,89517.0,89513.0,0.23472027]
[1765125936132,0.01117106,89517.0,89513.0,0.01128944]
[1765125936378,0.22342374,89516.0,89513.0,0.00011788]
[1765125936574,0.23459492,89516.0,89513.0,0.00011788]
[1765125936807,0.22342869,89515.0,89513.0,0.00011788]
[1765125937007,0.323,89514.0,89513.0,0.00011788]
[1765125937960,0.323,89514.0,89513.0,0.00211788]
[1765125938961,0.323,89514.0,89513.0,0.00011788]
[1765125939161,0.325,89514.0,89513.0,0.00011788]
[1765125940397,0.327,89514.0,89513.0,0.00011788]
[1765125951229,0.004,89514.0,89513.0,0.00011788]
[1765125953008,0.01081606,89514.0,89513.0,0.00011788]
[1765125956068,0.004,89514.0,89513.0,0.00011788]
[1765125956223,0.35602004,89514.0,89513.0,0.00011788]
[1765125956415,0.34920398,89514.0,89513.0,0.00011788]
[1765125956626,0.327,89514.0,89513.0,0.00011788]
[1765125962451,0.34468,89514.0,89513.0,0.00011788]
[1765125962924,0.327,89514.0,89513.0,0.00011788]
[1765125963151,0.34468,89514.0,89513.0,0.00011788]
[1765125963745,0.327,89514.0,89513.0,0.00011788]
[1765125963947,0.55042873,89514.0,89513.0,0.00011788]
[1765125964333,0.22742873,89514.0,89513.0,0.00011788]
[1765125964927,0.004,89514.0,89513.0,0.00011788]
[1765125966637,0.004,89514.0,89513.0,0.04095788]
[1765125966805,0.004,89514.0,89513.0,0.01647788]
[1765125967312,0.004,89514.0,89513.0,0.00011788]
[1765125967540,0.01081606,89514.0,89513.0,0.00011788]
[1765125971098,0.004,89514.0,89513.0,0.01647788]
[1765125971417,0.004,89514.0,89513.0,0.00011788]
[1765125983175,0.22742873,89514.0,89513.0,0.00011788]
[1765125987322,0.004,89514.0,89513.0,0.00011788]
[1765125988952,0.004,89514.0,89513.0,0.22354911]
[1765125991870,0.004,89514.0,89513.0,0.00011788]
[1765125995041,0.01081606,89514.0,89513.0,0.00011788]
[1765125997105,0.23424479,89514.0,89513.0,0.00011788]
[1765125997295,0.22742873,89514.0,89513.0,0.00011788]
[1765126003380,0.22679119,89514.0,89513.0,0.00011788]
[1765126004798,0.23848119,89514.0,89513.0,0.00011788]
[1765126006981,0.01505246,89514.0,89513.0,0.00011788]
[1765126008019,0.02186852,89514.0,89513.0,0.00011788]
[1765126010361,0.01505246,89514.0,89513.0,0.00011788]
[1765126013224,0.02186852,89514.0,89513.0,0.00011788]
[1765126016528,0.01505246,89514.0,89513.0,0.00011788]
[1765126016924,0.02186852,89514.0,89513.0,0.00011788]
[1765126017866,0.01505246,89514.0,89513.0,0.00011788]
[1765126019669,0.01505246,89514.0,89513.0,0.03888788]
[1765126019670,0.00336246,89514.0,89513.0,0.03888788]
[1765126021517,0.00336246,89514.0,89513.0,0.04050075]
[1765126022315,0.00336246,89514.0,89513.0,0.00173075]
[1765126022840,0.00336246,89514.0,89513.0,0.04050075]
[1765126024049,0.00336246,89514.0,89513.0,0.01723075]
[1765126025083,0.00336246,89514.0,89513.0,0.00173075]
[1765126026003,0.00336246,89514.0,89513.0,0.04050075]
[1765126026208,0.00336246,89514.0,89513.0,0.01723075]
[1765126027007,0.00336246,89514.0,89513.0,0.04050075]
[1765126028251,0.00336246,89514.0,89513.0,0.01723075]
[1765126028485,0.00336246,89514.0,89513.0,0.00173075]
[1765126028683,0.22679119,89514.0,89513.0,0.00011788]
[1765126031758,0.23796399,89514.0,89513.0,0.00011788]
[1765126041851,0.2350035,89514.0,89513.0,0.00011788]
[1765126043871,0.25720748,89514.0,89513.0,0.00011788]
[1765126044088,0.58020748,89514.0,89513.0,0.00011788]
[1765126044291,0.5580035,89514.0,89513.0,0.00011788]
[1765126045648,0.5580035,89514.0,89513.0,0.00111788]
[1765126045977,0.55760153,89514.0,89513.0,0.00111788]
[1765126046155,0.55860153,89514.0,89513.0,0.00711788]
[1765126049141,0.58080551,89514.0,89513.0,0.00711788]
[1765126049578,0.61536412,89514.0,89513.0,0.00711788]
[1765126052211,0.67788711,89514.0,89513.0,0.00711788]
[1765126054776,0.65568313,89514.0,89513.0,0.00711788]
[1765126055016,0.67788711,89514.0,89513.0,0.00711788]
[1765126055193,0.24565518,89505.0,89504.0,0.00024181]
[1765126055396,0.26329518,89505.0,89504.0,0.00024181]
[1765126055599,0.58629518,89505.0,89504.0,0.00024181]
[1765126055800,0.61985521,89505.0,89504.0,0.00024181]
[1765126056536,0.65439369,89505.0,89504.0,0.00024181]
[1765126056837,0.76409875,89505.0,89504.0,0.00024181]
[1765126057613,0.65439369,89505.0,89504.0,0.00124181]
[1765126057991,0.65539369,89505.0,89504.0,0.00824181]
[1765126060277,0.63318971,89505.0,89504.0,0.00824181]
[1765126060486,0.65539369,89505.0,89504.0,0.00824181]
[1765126065322,0.6957127,89505.0,89504.0,0.00824181]
[1765126065495,0.0111763,89475.0,89470.0,0.30457394]
[1765126065817,0.01117643,89474.0,89470.0,0.02539329]
[1765126066026,0.01117655,89473.0,89470.0,0.02539329]
[1765126066196,0.01117643,89474.0,89471.0,0.0111768]
[1765126066402,0.01117643,89474.0,89470.0,0.01421636]
[1765126066403,0.01117655,89473.0,89470.0,0.01421636]
[1765126066650,0.01117655,89473.0,89470.0,0.03239329]
[1765126066857,0.001,89475.0,89472.0,0.01617]
[1765126067005,0.01117618,89476.0,89472.0,0.23632073]
[1765126067197,0.001,89473.0,89472.0,0.01278955]
[1765126068086,0.01117593,89478.0,89474.0,0.01117643]
[1765126068726,0.01117568,89480.0,89475.0,0.23470225]
[1765126068936,0.0111753,89483.0,89479.0,0.0111758]
[1765126069185,0.0111753,89483.0,89480.0,0.01117568]
[1765126069741,0.0111753,89483.0,89479.0,0.0111758]
[1765126069959,0.001,89480.0,89479.0,0.0111758]
[1765126070183,0.01117543,89482.0,89479.0,0.0111758]
[1765126070612,0.0111753,89483.0,89480.0,0.01217568]
[1765126070613,0.0141753,89483.0,89480.0,0.01217568]
[1765126070932,0.0111753,89483.0,89480.0,0.01117568]
[1765126071147,0.0288148,89487.0,89484.0,0.01117518]
[1765126071685,0.01117493,89486.0,89483.0,0.0111753]
[1765126071892,0.0288148,89487.0,89484.0,0.01117518]
[1765126072667,0.0298148,89487.0,89484.0,0.01117518]
[1765126073121,0.01117493,89486.0,89483.0,0.0111753]
[1765126073302,0.00681606,89485.0,89484.0,0.002]
[1765126073982,0.0111753,89483.0,89480.0,0.01278855]
[1765126074188,0.22350863,89482.0,89480.0,0.00161287]
[1765126074792,0.00681606,89481.0,89480.0,0.00161287]
[1765126075428,0.01117618,89476.0,89473.0,0.01221]
[1765126075593,0.0111763,89475.0,89471.0,0.0111768]
[1765126076224,0.01117643,89474.0,89471.0,0.0111768]
[1765126076605,0.01117643,89474.0,89473.0,0.002]
[1765126076803,0.23470767,89473.0,89470.0,0.01260349]
[1765126077003,0.23470462,89475.0,89470.0,0.01260349]
[1765126077004,0.0111763,89475.0,89471.0,0.002]
[1765126077204,0.0141763,89475.0,89471.0,0.0131768]
[1765126077510,0.23470242,89475.0,89474.0,0.00090711]
[1765126078741,0.0111763,89475.0,89474.0,0.00090711]
[1765126079489,0.0151763,89475.0,89474.0,0.00290711]
[1765126079635,0.004,89475.0,89474.0,0.00290711]
[1765126082350,0.004,89475.0,89474.0,0.22643573]
[1765126083383,0.004,89475.0,89474.0,0.00290711]
[1765126086566,0.22752612,89475.0,89474.0,0.00290711]
[1765126086917,0.004,89475.0,89474.0,0.00290711]
[1765126089868,0.01081606,89475.0,89474.0,0.00290711]
[1765126090320,0.48597788,89475.0,89474.0,0.00290711]
[1765126090460,0.53597155,89475.0,89474.0,0.00290711]
[1765126091101,0.53644826,89475.0,89474.0,0.00090711]
[1765126091484,0.54344826,89475.0,89474.0,0.00290711]
[1765126091723,0.53644826,89475.0,89474.0,0.00090711]
[1765126092089,0.54644826,89475.0,89474.0,0.00290711]
[1765126092286,0.54844826,89475.0,89474.0,0.00290711]
[1765126092697,0.54644826,89475.0,89474.0,0.00290711]
[1765126092926,0.52424428,89475.0,89474.0,0.00290711]
[1765126093120,0.52624428,89475.0,89474.0,0.00290711]
[1765126096946,0.45363668,89475.0,89474.0,0.00290711]
[1765126097105,0.43667093,89475.0,89474.0,0.00290711]
[1765126099753,0.41903093,89475.0,89474.0,0.00290711]
[1765126099957,0.37414794,89475.0,89474.0,0.00290711]
[1765126102775,0.03411671,89475.0,89474.0,0.00290711]
[1765126103552,0.03211671,89475.0,89474.0,0.00290711]
[1765126103749,0.01447671,89475.0,89474.0,0.00290711]
[1765126103928,0.02211671,89475.0,89474.0,0.00090711]
[1765126104329,0.02711671,89475.0,89474.0,0.00290711]
[1765126104955,0.02811671,89475.0,89474.0,0.00290711]
[1765126107000,0.10927041,89475.0,89474.0,0.00290711]
[1765126108851,0.4947934,89475.0,89474.0,0.00290711]
[1765126109055,0.48797734,89475.0,89474.0,0.00290711]
[1765126109908,0.51018132,89475.0,89474.0,0.00290711]
[1765126110963,0.48797734,89475.0,89474.0,0.00290711]
[1765126111165,0.5342637,89475.0,89474.0,0.00290711]
[1765126112002,0.54471659,89475.0,89474.0,0.00290711]
[1765126113461,0.52251261,89475.0,89474.0,0.00290711]
[1765126115350,0.54471659,89475.0,89474.0,0.00290711]
[1765126115490,0.52251261,89475.0,89474.0,0.00290711]
[1765126115687,0.54471659,89475.0,89474.0,0.00290711]
[1765126115892,0.52251261,89475.0,89474.0,0.00290711]
[1765126117093,0.54471659,89475.0,89474.0,0.00290711]
[1765126117310,0.52251261,89475.0,89474.0,0.00290711]
[1765126117629,0.54471659,89475.0,89474.0,0.00290711]
[1765126117995,0.52251261,89475.0,89474.0,0.00290711]
[1765126118410,0.54471659,89475.0,89474.0,0.00290711]
[1765126118845,0.52251261,89475.0,89474.0,0.00290711]
[1765126119446,0.54471659,89475.0,89474.0,0.00290711]
[1765126119644,0.52251261,89475.0,89474.0,0.00290711]
[1765126119806,0.54471659,89475.0,89474.0,0.00290711]
[1765126120012,0.52251261,89475.0,89474.0,0.00290711]
[1765126123952,0.45998962,89475.0,89474.0,0.00290711]
[1765126124546,0.44234962,89475.0,89474.0,0.00290711]
[1765126124722,0.45998962,89475.0,89474.0,0.00290711]
[1765126125438,0.44234962,89475.0,89474.0,0.00290711]
[1765126125627,0.45998962,89475.0,89474.0,0.00290711]
[1765126128233,0.44234962,89475.0,89474.0,0.00290711]
[1765126128450,0.38565198,89475.0,89474.0,0.00290711]
[1765126129556,0.36801198,89475.0,89474.0,0.00290711]
[1765126129760,0.38565198,89475.0,89474.0,0.00290711]
[1765126129940,0.36801198,89475.0,89474.0,0.00290711]
[1765126130138,0.49535704,89475.0,89474.0,0.00290711]
[1765126132807,0.51756102,89475.0,89474.0,0.00290711]
[1765126133822,0.58008401,89475.0,89474.0,0.00290711]
[1765126135184,0.61017001,89475.0,89474.0,0.00290711]
[1765126136944,0.6102526,89475.0,89474.0,0.00290711]
[1765126137141,0.58008401,89475.0,89474.0,0.00290711]
[1765126138436,1.23625301,89475.0,89474.0,0.00290711]
[1765126140588,1.17211201,89475.0,89474.0,0.00290711]
[1765126140724,0.83196801,89475.0,89474.0,0.00290711]
[1765126141618,0.83196801,89475.0,89460.0,0.0004]
[1765126141619,0.63128807,89461.0,89460.0,0.0004]
[1765126141834,0.63128807,89461.0,89450.0,0.0004]
[1765126141835,0.63131306,89451.0,89450.0,0.0004]
[1765126142065,0.70051956,89451.0,89450.0,0.0004]
[1765126142267,0.71299956,89451.0,89450.0,0.00112601]
[1765126142468,0.82270462,89451.0,89450.0,0.00112601]
[1765126142821,0.69079558,89451.0,89450.0,0.00112601]
[1765126143026,0.69079558,89451.0,89450.0,0.00312601]
[1765126143027,0.69279558,89451.0,89450.0,0.00312601]
[1765126143262,0.69281259,89451.0,89450.0,0.00312601]
[1765126143779,0.68234269,89451.0,89450.0,0.00312601]
[1765126143942,0.58514847,89451.0,89450.0,0.00312601]
[1765126144144,0.01248,89451.0,89450.0,0.01625601]
[1765126144356,0.01764,89451.0,89450.0,0.01625601]
[1765126144572,0.02164,89451.0,89450.0,0.01925601]
[1765126145087,0.02164,89451.0,89450.0,0.00412601]
[1765126145681,0.04219335,89451.0,89450.0,0.00412601]
[1765126146090,0.04219335,89451.0,89450.0,0.00312601]
[1765126147315,0.04319335,89451.0,89450.0,0.00312601]
[1765126147515,0.02555335,89451.0,89450.0,0.00312601]
[1765126147710,0.04319335,89451.0,89450.0,0.00312601]
[1765126148943,0.02264,89451.0,89450.0,0.00312601]
[1765126150527,0.02264,89451.0,89450.0,0.2267146]
[1765126151330,0.005,89451.0,89450.0,0.26612747]
[1765126151614,0.005,89451.0,89450.0,0.28836314]
[1765126152001,0.004,89451.0,89450.0,0.28836314]
[1765126153413,0.01799449,89458.0,89454.0,0.01117892]
[1765126153589,0.00681606,89458.0,89455.0,0.0111788]
[1765126153792,0.01764,89459.0,89456.0,0.01117868]
[1765126154076,0.01764,89459.0,89456.0,0.01279155]
[1765126154283,0.01764,89459.0,89456.0,0.23636458]
[1765126154728,0.01764,89459.0,89458.0,0.2235686]
[1765126155034,0.01764,89459.0,89458.0,0.22518147]
[1765126155402,0.01964,89459.0,89458.0,0.22518147]
[1765126155611,0.01964,89459.0,89458.0,0.00161287]
[1765126156637,0.01764,89459.0,89458.0,0.00161287]
[1765126156840,0.01964,89459.0,89458.0,0.00661287]
[1765126157076,0.002,89459.0,89458.0,0.23018147]
[1765126157280,0.01964,89459.0,89458.0,0.24748147]
[1765126157806,0.01964,89459.0,89458.0,0.02391287]
[1765126158010,0.01964,89459.0,89458.0,0.24748147]
[1765126158537,0.01964,89459.0,89458.0,0.04786287]
[1765126158942,0.01964,89459.0,89458.0,0.02391287]
[1765126159132,0.01964,89459.0,89458.0,0.24748147]
[1765126161422,0.002,89459.0,89458.0,0.27143147]
[1765126161925,0.002,89459.0,89458.0,0.27154918]
[1765126164400,0.002,89459.0,89458.0,0.27203314]
[1765126171797,0.002,89459.0,89458.0,0.29426881]
[1765126172618,0.02881655,89473.0,89469.0,0.01117705]
[1765126172619,0.01117668,89472.0,89469.0,0.01117705]
[1765126172799,0.02881655,89473.0,89472.0,0.02776]
[1765126174125,0.03281655,89473.0,89472.0,0.02976]
[1765126174280,0.01517655,89473.0,89472.0,0.02976]
[1765126174683,0.02199261,89473.0,89472.0,0.002]
[1765126175222,0.02299261,89473.0,89472.0,0.002]
[1765126176383,0.005,89473.0,89472.0,0.26639648]
[1765126176626,0.005,89473.0,89472.0,0.28863215]
[1765126178447,0.22349603,89488.0,89472.0,0.28863215]
[1765126178448,0.01117455,89489.0,89483.0,0.0111753]
[1765126178734,0.22347904,89494.0,89483.0,0.0111753]
[1765126178735,0.04645405,89493.0,89488.0,0.26242601]
[1765126179031,0.02881405,89493.0,89489.0,0.02395]
[1765126179185,0.01799024,89492.0,89489.0,0.03512455]
[1765126179387,0.23466023,89492.0,89489.0,0.02395]
[1765126179609,0.0111743,89491.0,89490.0,0.02395]
[1765126179807,0.01156723,89491.0,89490.0,0.02395]
[1765126180161,0.00039293,89491.0,89490.0,0.26273865]
[1765126180963,0.00039293,89491.0,89490.0,0.28497432]
[1765126181938,0.00539293,89491.0,89490.0,0.06348567]
[1765126182138,0.00539293,89491.0,89490.0,0.04125]
[1765126182717,0.00539293,89491.0,89490.0,0.04225]
[1765126184102,0.00539293,89491.0,89490.0,0.26573865]
[1765126185505,2.02849209,89491.0,89490.0,0.00143486]
[1765126185686,2.05126365,89491.0,89490.0,0.00143486]
[1765126186264,2.04626365,89491.0,89490.0,0.001]
[1765126186477,0.54654611,89467.0,89466.0,0.00024196]
[1765126186688,0.56418611,89467.0,89466.0,0.00024196]
[1765126188510,0.56418611,89467.0,89466.0,0.00124196]
[1765126188683,0.67389117,89467.0,89466.0,0.00124196]
[1765126189380,0.67689117,89467.0,89466.0,0.00324196]
[1765126189612,0.67389117,89467.0,89466.0,0.00024196]
[1765126190895,0.67789117,89467.0,89466.0,0.00424196]
[1765126193018,0.56818611,89467.0,89466.0,0.00424196]
[1765126193839,0.55054611,89467.0,89466.0,0.00424196]
[1765126194150,0.56818611,89467.0,89466.0,0.00424196]
[1765126194870,0.55054611,89467.0,89466.0,0.00424196]
[1765126195240,0.56818611,89467.0,89466.0,0.00424196]
[1765126196903,0.55054611,89467.0,89466.0,0.00424196]
[1765126197109,0.24518611,89467.0,89466.0,0.01999196]
[1765126197825,0.24518611,89467.0,89466.0,0.00424196]
[1765126197988,0.24418611,89467.0,89466.0,0.00424196]
[1765126198189,0.24118611,89467.0,89466.0,0.00024196]
[1765126198395,0.72012435,89467.0,89466.0,0.00124196]
[1765126198632,0.74632833,89467.0,89466.0,0.00624196]
[1765126198895,0.76936833,89467.0,89466.0,0.00624196]
[1765126199094,0.76936833,89467.0,89466.0,0.00524196]
[1765126199715,0.79338271,89467.0,89466.0,0.00524196]
[1765126200154,0.76536833,89467.0,89466.0,0.00024196]
[1765126200540,0.79538865,89467.0,89466.0,0.00324196]
[1765126200743,0.77318467,89467.0,89466.0,0.00324196]
[1765126200966,0.54658609,89451.0,89450.0,0.0004]
[1765126201171,0.58125732,89451.0,89450.0,0.0004]
[1765126201543,0.58125732,89451.0,89450.0,0.00088402]
[1765126202183,0.58525732,89451.0,89450.0,0.00900173]